bitfinex/quotes_SOLUSD_20220210
["timestamp","ask_amount","ask_price","bid_price","bid_amount"]
[1644512889851,1.27375716,112.31,112.22,19.19133719]
[1644512890053,1.27375716,112.31,112.23,15.70582891]
[1644512890252,1.27375716,112.31,112.24,12.87]
[1644512890453,37.08985224,112.32,112.24,18.94133719]
[1644512890653,37.057064,112.32,112.24,14.48833719]
[1644512891053,37.08985224,112.32,112.24,14.48833719]
[1644512891856,50.45255224,112.32,112.24,27.84903719]
[1644512892254,50.45255224,112.32,112.24,33.43717304]
[1644512892453,50.45255224,112.32,112.24,39.43717304]
[1644512892654,49.17879508,112.32,112.24,39.43717304]
[1644512893253,49.17879508,112.32,112.24,34.09903719]
[1644512893455,49.17879508,112.32,112.24,33.84903719]
[1644512893855,35.81609508,112.32,112.24,26.2307]
[1644512894058,38.04731662,112.32,112.23,23.723]
[1644512894256,39.18470636,112.3,112.22,12.87]
[1644512894459,39.2174946,112.3,112.22,12.87]
[1644512895456,17.8185,112.29,112.22,26.2365]
[1644512895657,4.453,112.29,112.23,4.454]
[1644512895857,4.453,112.29,112.24,12.87]
[1644512896058,4.453,112.29,112.25,4.453]
[1644512896259,0.03278824,112.33,112.26,12.87]
[1644512896457,1.27375716,112.34,112.27,13.3605]
[1644512896661,42.19242989,112.33,112.27,13.3605]
[1644512897859,14.63405716,112.34,112.27,13.3605]
[1644512898060,1.27375716,112.34,112.27,13.3605]
[1644512898359,1.3065454,112.35,112.28,26.2287]
[1644512898562,5.7585454,112.36,112.28,26.2287]
[1644512898760,1.27375716,112.36,112.28,30.9287]
[1644512898960,0.03278824,112.36,112.29,0.39521256]
[1644512899161,44.36986533,112.37,112.3,12.87]
[1644512899363,44.36986533,112.37,112.3,26.2256]
[1644512899564,43.09610817,112.37,112.3,26.2256]
[1644512900765,0.03278824,112.37,112.3,26.2256]
[1644512900964,0.03278824,112.37,112.3,26.4756]
[1644512901164,1.3065454,112.39,112.3,30.9256]
[1644512901571,1.3065454,112.39,112.3,55.7251]
[1644512901765,59.49786673,112.39,112.31,18.0459313]
[1644512901963,59.49786673,112.39,112.32,12.87]
[1644512902168,59.46507849,112.39,112.32,12.87]
[1644512902566,58.19132133,112.39,112.32,12.87]
[1644512902864,58.22410957,112.39,112.32,12.87]
[1644512903366,0.03278824,112.39,112.32,26.2238]
[1644512903567,1.3065454,112.41,112.32,28.09213719]
[1644512903767,0.03278824,112.39,112.32,194.93213719]
[1644512903965,0.03278824,112.41,112.32,194.93213719]
[1644512904166,1.27375716,112.43,112.33,47.6769]
[1644512904368,45.56299678,112.42,112.34,12.87]
[1644512904568,45.53020854,112.42,112.34,26.2199]
[1644512904770,45.56299678,112.42,112.34,26.2199]
[1644512905166,46.83675394,112.42,112.34,26.2199]
[1644512905466,45.56299678,112.42,112.34,26.2199]
[1644512906067,45.56299678,112.42,112.34,22.3199]
[1644512906566,45.56299678,112.42,112.35,16.63135832]
[1644512906766,45.56299678,112.42,112.36,26.2194]
[1644512906968,45.53020854,112.42,112.36,26.2194]
[1644512907168,0.03278824,112.43,112.36,26.2194]
[1644512907372,1.27375716,112.44,112.36,28.08773719]
[1644512907569,1.3065454,112.46,112.36,28.08773719]
[1644512907767,1.3065454,112.46,112.36,27.83773719]
[1644512907967,4.448,112.45,112.36,26.2194]
[1644512908169,36.40981966,112.44,112.36,28.5789621]
[1644512908371,36.4426079,112.44,112.36,26.2194]
[1644512908668,36.4426079,112.44,112.36,26.4694]
[1644512908867,36.40981966,112.44,112.36,26.2194]
[1644512909973,36.4426079,112.44,112.36,26.2194]
[1644512910672,36.4426079,112.44,112.37,0.82268812]
[1644512910873,0.03278824,112.45,112.38,26.2153]
[1644512911072,0.03278824,112.46,112.38,26.2153]
[1644512911272,14.61955716,112.47,112.38,26.2153]
[1644512911472,0.03278824,112.46,112.38,26.2153]
[1644512911673,1.27375716,112.47,112.38,26.2153]
[1644512911973,47.68846264,112.46,112.38,26.2153]
[1644512912171,53.4092198,112.46,112.38,26.2153]
[1644512912373,52.13546264,112.46,112.38,26.2153]
[1644512912971,65.51455088,112.46,112.38,32.2153]
[1644512913176,65.51455088,112.46,112.38,34.03924261]
[1644512913374,61.03476264,112.46,112.38,38.48624261]
[1644512914172,61.03476264,112.46,112.38,36.6623]
[1644512914374,4.447,112.45,112.38,17.317]
[1644512914575,6.71100978,112.45,112.38,12.87]
[1644512914975,6.71100978,112.45,112.36,12.87]
[1644512915178,39.41115107,112.44,112.36,30.83509475]
[1644512915376,52.72616283,112.44,112.36,30.83509475]
[1644512915577,52.75895107,112.44,112.36,30.83509475]
[1644512916475,52.75895107,112.44,112.36,12.87]
[1644512916682,13.3492,112.43,112.36,26.2192]
[1644512916899,4.448,112.42,112.36,12.87]
[1644512917077,6.67922154,112.43,112.32,1.61244148]
[1644512917276,6.67922154,112.43,112.31,12.87]
[1644512917277,0.03278824,112.41,112.31,12.87]
[1644512917576,4.449,112.4,112.31,12.87]
[1644512917777,13.355,112.38,112.31,26.2241]
[1644512918377,17.805,112.38,112.31,26.2241]
[1644512918577,39.31284002,112.37,112.31,26.2241]
[1644512919378,52.66884002,112.37,112.31,26.2241]
[1644512920086,39.31284002,112.37,112.31,26.2241]
[1644512920280,43.76284002,112.37,112.31,26.2241]
[1644512920683,43.76284002,112.37,112.31,27.8423132]
[1644512920880,39.31284002,112.37,112.31,27.8423132]
[1644512922278,39.31284002,112.37,112.31,26.2241]
[1644512923078,4.48278824,112.38,112.31,41.74725901]
[1644512923280,0.03278824,112.4,112.31,49.61547221]
[1644512923478,0.03278824,112.4,112.33,13.3507]
[1644512923677,0.03278824,112.4,112.34,12.87]
[1644512923878,1.3065454,112.42,112.34,12.87]
[1644512924081,41.58453346,112.41,112.34,12.87]
[1644512924288,4.449,112.4,112.34,12.87]
[1644512924705,4.449,112.4,112.34,26.2199]
[1644512925106,45.63203293,112.39,112.34,12.87]
[1644512925705,45.63203293,112.39,112.32,4.45]
[1644512925907,4.45,112.38,112.32,4.45]
[1644512926508,43.18266491,112.37,112.32,4.45]
[1644512926708,56.53866491,112.37,112.32,4.45]
[1644512927210,56.53866491,112.37,112.3,48.8351]
[1644512927408,60.98866491,112.37,112.3,48.8351]
[1644512928409,62.26242207,112.37,112.3,48.8351]
[1644512928609,13.3571,112.36,112.3,48.8351]
[1644512928808,44.80101717,112.35,112.3,48.8351]
[1644512929611,44.80101717,112.35,112.27,22.9109]
[1644512929812,49.25101717,112.35,112.27,22.9109]
[1644512930412,49.28380541,112.35,112.27,22.9109]
[1644512930616,62.64180541,112.35,112.27,36.2707]
[1644512930814,44.83380541,112.35,112.28,12.87]
[1644512931015,49.25101717,112.35,112.27,22.9109]
[1644512931215,44.83380541,112.35,112.27,22.9109]
[1644512931417,44.80101717,112.35,112.27,22.9109]
[1644512931615,44.80101717,112.35,112.27,24.5291132]
[1644512931815,44.80101717,112.35,112.27,22.9109]
[1644512932617,13.3594,112.34,112.27,40.7205]
[1644512932818,1.3065454,112.36,112.28,31.51530684]
[1644512933018,5.7565454,112.38,112.28,12.87]
[1644512933219,5.7565454,112.38,112.28,18.87]
[1644512933618,5.7565454,112.38,112.28,37.7806]
[1644512934016,13.3577,112.36,112.29,13.3562]
[1644512934216,39.56621635,112.35,112.29,13.3562]
[1644512935119,39.56621635,112.35,112.3,12.87]
[1644512935320,5.7565454,112.38,112.3,13.3562]
[1644512935618,4.48278824,112.38,112.3,50.5754]
[1644512935822,1.3065454,112.38,112.3,50.5754]
[1644512936019,4.45,112.37,112.3,50.5754]
[1644512936220,45.97686457,112.36,112.3,50.5754]
[1644512936617,0.03278824,112.37,112.31,1.6182132]
[1644512936820,1.27375716,112.38,112.33,13.3515]
[1644512937018,2.53753699,112.41,112.34,12.87]
[1644512937019,0.03278824,112.4,112.34,12.87]
[1644512937219,1.27375716,112.42,112.34,12.87]
[1644512937419,1.27375716,112.42,112.34,36.386]
[1644512937420,1.3065454,112.42,112.34,36.386]
[1644512937620,36.49468271,112.41,112.34,36.386]
[1644512938719,36.49468271,112.41,112.34,49.7359]
[1644512940627,5.72275716,112.42,112.35,16.1862982]
[1644512940821,1.27375716,112.42,112.36,13.3485]
[1644512941025,14.6550454,112.43,112.36,26.2185]
[1644512941219,14.62225716,112.43,112.36,26.2185]
[1644512941621,42.62357749,112.42,112.36,26.2185]
[1644512943022,42.62357749,112.42,112.36,30.6665]
[1644512943223,43.89733465,112.42,112.36,26.2185]
[1644512943528,1.27375716,112.41,112.36,12.87]
[1644512944326,1.27375716,112.4,112.36,12.87]
[1644512944527,4.449,112.39,112.32,17.802]
[1644512944729,7.9539787,112.39,112.32,4.448]
[1644512944927,7.9539787,112.39,112.29,25.9521]
[1644512944928,1.27375716,112.38,112.29,12.87]
[1644512945126,4.45,112.37,112.29,12.87]
[1644512945330,41.16981109,112.36,112.29,33.18059157]
[1644512945527,0.03278824,112.37,112.3,13.356]
[1644512945726,14.62795716,112.38,112.3,13.356]
[1644512945927,1.27375716,112.38,112.3,13.356]
[1644512946529,1.27375716,112.38,112.31,12.87]
[1644512946729,14.62815716,112.38,112.31,50.4671]
[1644512946929,14.62815716,112.38,112.31,70.45423852]
[1644512947128,40.29132108,112.39,112.31,70.45423852]
[1644512947329,39.01756392,112.39,112.31,50.4671]
[1644512947530,39.05035216,112.39,112.32,4.45]
[1644512947730,39.05035216,112.39,112.33,12.87]
[1644512947929,39.01756392,112.39,112.33,12.87]
[1644512948732,39.01756392,112.39,112.33,26.2218]
[1644512948930,40.29132108,112.39,112.33,26.2218]
[1644512949331,42.52254262,112.39,112.31,60.4153]
[1644512949533,40.32410932,112.39,112.31,60.4153]
[1644512949735,14.62885716,112.38,112.31,73.7701]
[1644512949934,1.27375716,112.38,112.31,73.7701]
[1644512950866,13.3554,112.37,112.31,73.7701]
[1644512951068,3.53776694,112.38,112.3,13.356]
[1644512951269,4.45,112.36,112.28,12.87]
[1644512951467,2.23122154,112.36,112.25,47.4862]
[1644512951666,7.9569787,112.35,112.25,47.4862]
[1644512951873,42.50938583,112.34,112.25,47.4862]
[1644512952067,4.452,112.33,112.25,47.4862]
[1644512952268,4.452,112.33,112.23,14.4882132]
[1644512952467,6.68322154,112.33,112.22,12.87]
[1644512952668,2.23122154,112.32,112.2,12.87]
[1644512952967,5.72675716,112.31,112.2,12.87]
[1644512953168,48.42497557,112.3,112.2,31.59519465]
[1644512953367,4.454,112.29,112.2,31.59519465]
[1644512953772,44.5604,112.3,112.2,31.84519465]
[1644512953968,1.27375716,112.32,112.21,4.454]
[1644512954170,4.454,112.32,112.22,60.7937]
[1644512954368,1.27375716,112.35,112.23,4.453]
[1644512954572,5.72575716,112.34,112.24,12.87]
[1644512954869,34.52835503,112.33,112.24,15.40621768]
[1644512955171,34.52835503,112.33,112.24,17.02443088]
[1644512955372,38.98035503,112.33,112.24,12.87]
[1644512955869,85.76077657,112.33,112.22,47.9237]
[1644512956071,1.27375716,112.32,112.2,13.3467]
[1644512956377,4.453,112.31,112.21,19.74799462]
[1644512956770,13.3653,112.3,112.21,45.98389462]
[1644512956974,47.50171081,112.29,112.21,50.43689462]
[1644512957172,47.50171081,112.29,112.21,26.2359]
[1644512957772,13.3668,112.28,112.21,26.2359]
[1644512957970,15.59802154,112.28,112.21,12.87]
[1644512958574,13.3668,112.28,112.21,12.87]
[1644512959873,13.3668,112.28,112.21,26.236]
[1644512960274,49.0107,112.31,112.21,26.236]
[1644512960476,4.453,112.32,112.21,32.55305254]
[1644512960679,1.27375716,112.33,112.21,38.55305254]
[1644512960874,28.3398454,112.37,112.22,61.8224]
[1644512961073,2.26400978,112.36,112.23,17.322]
[1644512961275,49.22330437,112.35,112.23,37.62314537]
[1644512961482,51.45452591,112.35,112.23,36.00909283]
[1644512961775,51.45452591,112.35,112.24,24.7629]
[1644512961976,51.45452591,112.35,112.25,12.87]
[1644512962176,93.76410437,112.35,112.25,26.2315]
[1644512962976,2.23122154,112.34,112.25,26.2315]
[1644512963176,17.8138,112.33,112.25,26.2315]
[1644512963377,4.452,112.33,112.25,12.87]
[1644512963578,51.22852154,112.34,112.25,12.87]
[1644512963982,2.23122154,112.32,112.25,12.87]
[1644512964281,54.58608346,112.31,112.25,12.87]
[1644512964482,45.67498346,112.31,112.24,24.7629]
[1644512964689,2.23122154,112.3,112.23,12.87]
[1644512965480,13.3657,112.29,112.23,12.87]
[1644512970984,54.58588346,112.31,112.23,18.55693688]
[1644512971184,54.58588346,112.31,112.23,46.01653688]
[1644512971385,41.22198346,112.31,112.23,46.01653688]
[1644512971890,41.22198346,112.31,112.23,45.76653688]
[1644512972082,41.22198346,112.31,112.23,47.38058942]
[1644512972284,41.22198346,112.31,112.23,45.76653688]
[1644512972582,41.22198346,112.31,112.23,35.6266]
[1644512972784,41.22198346,112.31,112.23,49.2405]
[1644512972983,41.22198346,112.31,112.23,48.9905]
[1644512974285,13.3643,112.3,112.23,48.9905]
[1644512974487,41.22198346,112.31,112.23,48.9905]
[1644512974888,41.22198346,112.31,112.23,62.8696]
[1644512975188,5.7595454,112.36,112.24,1.61405254]
[1644512975487,13.3586,112.35,112.25,12.87]
[1644512975687,13.3586,112.35,112.26,22.55]
[1644512975890,13.3586,112.35,112.27,12.87]
[1644512976087,45.81841257,112.34,112.27,12.87]
[1644512976287,45.81841257,112.34,112.27,13.12]
[1644512977124,45.81841257,112.34,112.27,26.4781]
[1644512977326,45.81841257,112.34,112.27,26.2281]
[1644512978526,59.17761257,112.34,112.27,26.2281]
[1644512978823,6.68322154,112.33,112.27,26.2281]
[1644512979223,6.68322154,112.33,112.27,12.87]
[1644512979224,2.23122154,112.32,112.27,12.87]
[1644512979428,2.23122154,112.32,112.24,12.87]
[1644512979634,4.453,112.31,112.24,12.87]
[1644512979824,13.3649,112.3,112.24,12.87]
[1644512980023,4.453,112.29,112.23,27.0499]
[1644512980224,6.68422154,112.29,112.23,4.452]
[1644512980827,4.453,112.29,112.23,4.452]
[1644512981023,47.08868955,112.28,112.23,4.452]
[1644512981225,4.454,112.27,112.23,4.452]
[1644512981426,17.8224,112.27,112.23,4.452]
[1644512981627,17.8224,112.27,112.18,67.846]
[1644512981628,16.18322154,112.27,112.18,36.1582]
[1644512981825,16.18322154,112.27,112.18,23.2882]
[1644512982026,16.18322154,112.27,112.16,1.27161193]
[1644512982229,1.27375716,112.26,112.15,47.0748]
[1644512982425,47.10385014,112.25,112.15,47.0748]
[1644512982626,49.33507168,112.25,112.15,47.0748]
[1644512983226,53.31562201,112.22,112.15,60.4491]
[1644512983428,53.31562201,112.22,112.15,47.0748]
[1644512984130,49.0348,112.25,112.15,47.0748]
[1644512984327,13.3723,112.23,112.15,65.1537]
[1644512984728,49.0271,112.27,112.16,12.87]
[1644512984929,4.455,112.28,112.16,12.87]
[1644512985126,1.27375716,112.29,112.17,47.09118749]
[1644512985127,41.51845184,112.27,112.17,47.09118749]
[1644512985327,41.51845184,112.27,112.18,12.87]
[1644512985526,13.3688,112.26,112.19,15.53342484]
[1644512986126,41.51845184,112.27,112.19,15.53342484]
[1644512986328,41.62904439,112.25,112.19,13.368]
[1644512987129,13.369,112.26,112.19,13.368]
[1644512987332,49.0176,112.29,112.19,13.368]
[1644512987527,49.0176,112.29,112.19,36.2718]
[1644512987729,49.0176,112.29,112.19,36.5218]
[1644512987928,49.0176,112.29,112.19,36.2718]
[1644512988229,13.3675,112.27,112.2,38.79703564]
[1644512989230,13.3675,112.27,112.2,13.3675]
[1644512990134,46.73677832,112.26,112.2,13.3675]
[1644512991132,46.73677832,112.26,112.2,26.2375]
[1644512992230,13.3675,112.27,112.2,26.2375]
[1644512992430,13.3664,112.28,112.2,26.2375]
[1644512992635,13.3664,112.28,112.2,30.9415]
[1644512992833,13.3664,112.28,112.2,26.4875]
[1644512993233,34.59326052,112.27,112.2,26.4875]
[1644512993733,34.59326052,112.27,112.2,26.2375]
[1644512994334,13.3664,112.28,112.21,7.29380357]
[1644512994536,13.3664,112.28,112.21,33.53030357]
[1644512995333,57.02002721,112.28,112.21,33.53030357]
[1644512996237,57.02002721,112.28,112.21,26.2365]
[1644512997236,57.02002721,112.28,112.21,51.69048868]
[1644512999239,57.02002721,112.28,112.21,26.2365]
[1644513000238,13.3677,112.27,112.21,26.2365]
[1644513000443,45.0106946,112.26,112.21,12.87]
[1644513001141,45.0106946,112.26,112.19,45.9002]
[1644513001344,47.24191614,112.26,112.19,45.9002]
[1644513002743,47.24191614,112.26,112.17,0.024]
[1644513003044,4.455,112.25,112.17,0.024]
[1644513003344,4.455,112.25,112.16,61.3302]
[1644513003542,37.12940225,112.24,112.17,0.024]
[1644513003742,50.50120225,112.24,112.17,13.3958]
[1644513003942,50.50120225,112.24,112.17,13.3718]
[1644513004142,50.50120225,112.24,112.17,13.3958]
[1644513005345,13.3697,112.25,112.18,3.11236205]
[1644513005548,24.51285716,112.29,112.19,13.3673]
[1644513005549,72.2565,112.29,112.19,13.3673]
[1644513005746,4.455,112.31,112.2,36.1777]
[1644513006147,4.455,112.31,112.2,36.4277]
[1644513006346,48.8235246,112.27,112.2,59.02875028]
[1644513006547,48.8235246,112.27,112.2,36.4277]
[1644513006747,48.8235246,112.27,112.2,49.7941]
[1644513007746,62.1907246,112.27,112.21,4.01466797]
[1644513007947,49.0095,112.31,112.21,17.38146797]
[1644513008147,5.72675716,112.32,112.22,12.87]
[1644513008348,4.453,112.32,112.22,17.573]
[1644513008549,4.453,112.32,112.22,17.323]
[1644513008750,4.453,112.32,112.22,17.573]
[1644513008948,13.3625,112.31,112.24,33.55501176]
[1644513009148,13.3625,112.31,112.24,13.3626]
[1644513009547,45.81955716,112.33,112.25,12.87]
[1644513009548,1.27375716,112.33,112.25,12.87]
[1644513009748,1.27375716,112.34,112.25,13.12]
[1644513009949,1.27375716,112.34,112.26,13.3607]
[1644513010147,34.8914477,112.33,112.26,13.3607]
[1644513010547,34.8914477,112.33,112.26,15.4673391]
[1644513010748,34.8914477,112.33,112.26,13.3607]
[1644513011051,13.3622,112.32,112.26,13.3607]
[1644513011251,39.3434477,112.33,112.25,48.8032]
[1644513011449,34.8914477,112.33,112.25,48.8032]
[1644513012349,13.3613,112.32,112.25,48.8032]
[1644513012749,34.8914477,112.33,112.25,48.8032]
[1644513013049,34.8914477,112.33,112.25,53.2552]
[1644513013249,34.8914477,112.33,112.25,53.5052]
[1644513013449,34.8914477,112.33,112.25,53.2552]
[1644513013652,4.452,112.32,112.25,39.8925]
[1644513013849,4.452,112.32,112.25,4.452]
[1644513014051,2.23122154,112.31,112.25,4.452]
[1644513014350,4.453,112.3,112.25,4.452]
[1644513014551,38.7868912,112.29,112.25,4.452]
[1644513015750,13.3662,112.28,112.25,4.452]
[1644513015951,0.99999999,112.27,112.22,41.3931]
[1644513016155,0.99999999,112.27,112.22,36.9401]
[1644513016553,36.42254547,112.27,112.22,36.9401]
[1644513017354,36.42254547,112.27,112.19,35.8208]
[1644513017552,4.455,112.26,112.19,35.8208]
[1644513017751,4.455,112.26,112.19,12.87]
[1644513017958,35.40113064,112.25,112.19,12.87]
[1644513018354,35.40113064,112.25,112.18,13.3946]
[1644513018553,35.40113064,112.25,112.18,13.3706]
[1644513018756,35.40113064,112.25,112.18,13.3946]
[1644513018956,35.40113064,112.25,112.18,0.024]
[1644513019156,35.40113064,112.25,112.17,22.8702]
[1644513019757,5.72875716,112.28,112.17,22.8702]
[1644513019758,5.72875716,112.28,112.17,36.492]
[1644513019959,12.87,112.3,112.18,102.054]
[1644513019960,1.27375716,112.3,112.18,102.054]
[1644513020159,1.27375716,112.31,112.19,48.3931]
[1644513020360,1.27375716,112.32,112.2,12.87]
[1644513020560,1.30655635,112.36,112.23,162.11161193]
[1644513020761,0.03279919,112.36,112.25,160.84]
[1644513020961,0.03279919,112.36,112.26,102.03]
[1644513021159,36.05415162,112.36,112.26,14.48436088]
[1644513021362,0.03279919,112.37,112.26,181.57436088]
[1644513021564,0.03279919,112.36,112.27,24.8222]
[1644513021772,4.45,112.38,112.28,12.87]
[1644513021773,0.03279919,112.38,112.28,12.87]
[1644513021963,0.03279919,112.38,112.3,13.3541]
[1644513022164,14.66125635,112.39,112.31,12.87]
[1644513022367,64.21134748,112.38,112.31,12.87]
[1644513022564,65.45230545,112.38,112.31,12.87]
[1644513022764,49.86568391,112.38,112.31,12.87]
[1644513022964,45.41568391,112.38,112.31,12.87]
[1644513023165,44.14192675,112.38,112.31,12.87]
[1644513023765,44.14192675,112.38,112.31,26.2256]
[1644513024865,4.45,112.39,112.31,28.09572901]
[1644513025066,0.03279919,112.39,112.31,28.09572901]
[1644513025265,0.03279919,112.4,112.31,52.34622901]
[1644513025471,4.48279919,112.4,112.31,50.7261]
[1644513025684,4.48279919,112.4,112.32,1.62012901]
[1644513025891,39.11145131,112.42,112.33,26.2183]
[1644513026091,13.3495,112.44,112.33,26.2183]
[1644513026092,41.12056028,112.4,112.33,26.2183]
[1644513026292,41.12056028,112.4,112.34,1.62012901]
[1644513026495,41.12056028,112.4,112.34,12.87]
[1644513027490,0.03279919,112.41,112.34,26.2214]
[1644513027692,0.03279919,112.42,112.34,26.4714]
[1644513027991,0.03279919,112.43,112.34,26.2214]
[1644513028596,13.38349919,112.43,112.34,26.2214]
[1644513028792,43.2043823,112.42,112.34,26.2214]
[1644513028996,45.59582346,112.4,112.34,26.2214]
[1644513029407,2.53753699,112.48,112.36,131.0]
[1644513029598,47.2601,112.56,112.38,0.30530513]
[1644513029805,44.68724419,112.54,112.41,131.0]
[1644513030001,44.68724419,112.54,112.39,4.446]
[1644513030303,2.52089148,112.57,112.43,131.0]
[1644513030504,1.25993591,112.59,112.47,160.84]
[1644513030701,1.25993591,112.59,112.48,12.87]
[1644513030902,1.25993591,112.61,112.49,4.442]
[1644513031098,1.25993591,112.61,112.49,176.90110954]
[1644513031399,17.59671972,112.64,112.49,176.90110954]
[1644513031400,376.94395859,112.65,112.51,160.84]
[1644513031599,1.25993591,112.66,112.53,160.84]
[1644513031798,1.25993591,112.66,112.55,160.84]
[1644513031998,3.145366,112.67,112.56,17.31]
[1644513032298,3.145366,112.67,112.56,19.12]
[1644513032499,42.22716222,112.68,112.56,179.96]
[1644513032700,39.08179622,112.68,112.57,4.439]
[1644513033001,42.22716222,112.68,112.58,12.87]
[1644513033398,42.22716222,112.68,112.58,19.12]
[1644513033600,42.22716222,112.68,112.58,18.87]
[1644513033901,42.22716222,112.68,112.58,12.87]
[1644513034503,45.84516222,112.68,112.58,19.12]
[1644513034700,42.69979622,112.68,112.58,18.87]
[1644513035101,39.08179622,112.68,112.58,18.87]
[1644513035302,39.08179622,112.68,112.58,19.12]
[1644513035704,35.95686954,112.76,112.59,13.315]
[1644513035903,35.99019586,112.76,112.6,173.71]
[1644513036102,42.13351594,112.74,112.6,173.71]
[1644513036304,0.03332632,112.73,112.6,173.71]
[1644513036503,34.25556425,112.72,112.6,173.71]
[1644513036903,36.67042217,112.7,112.6,173.71]
[1644513037303,2.23122154,112.69,112.6,12.87]
[1644513037505,40.45905866,112.67,112.6,12.87]
[1644513037705,43.7562728,112.65,112.6,12.87]
[1644513037905,60.0,112.64,112.55,23.2813]
[1644513038108,45.71569688,112.63,112.56,12.87]
[1644513038305,45.71569688,112.63,112.5,160.84]
[1644513038507,47.94691842,112.63,112.51,12.87]
[1644513038907,2.23122154,112.62,112.51,12.87]
[1644513039208,37.80188546,112.6,112.51,12.87]
[1644513039806,35.22044654,112.58,112.51,12.87]
[1644513040410,35.22044654,112.58,112.48,4.442]
[1644513040612,5.86522154,112.57,112.48,4.442]
[1644513040816,43.30620363,112.56,112.48,4.442]
[1644513041212,43.30620363,112.56,112.49,12.87]
[1644513041414,43.30620363,112.56,112.49,17.312]
[1644513042013,43.30620363,112.56,112.49,4.442]
[1644513042214,43.30620363,112.56,112.46,12.87]
[1644513042616,43.30620363,112.56,112.46,17.314]
[1644513042814,43.30620363,112.56,112.46,18.95100023]
[1644513043016,43.30620363,112.56,112.46,17.314]
[1644513043214,3.583,112.55,112.42,38.52601967]
[1644513043414,3.583,112.55,112.43,12.87]
[1644513043815,42.85201146,112.54,112.43,12.87]
[1644513044014,42.85201146,112.54,112.44,4.444]
[1644513044222,35.67861722,112.52,112.43,1.63700023]
[1644513044436,3.633,112.57,112.45,12.87]
[1644513044634,10.871,112.58,112.46,4.444]
[1644513044840,10.871,112.58,112.46,48.8390199]
[1644513045033,10.871,112.58,112.47,6.07900023]
[1644513045235,10.871,112.58,112.48,12.87]
[1644513045435,0.03335567,112.57,112.48,12.87]
[1644513045636,0.03335567,112.57,112.47,4.442]
[1644513046541,47.42112803,112.57,112.47,4.442]
[1644513048541,131.0,112.56,112.41,24.3938]
[1644513048838,131.0,112.56,112.41,12.87]
[1644513048839,43.42584767,112.54,112.41,12.87]
[1644513049040,4.47835567,112.53,112.39,12.87]
[1644513049243,0.03335567,112.52,112.39,12.87]
[1644513049542,4.446,112.51,112.39,12.87]
[1644513049739,4.47935567,112.53,112.4,4.446]
[1644513049941,0.03335567,112.5,112.39,12.87]
[1644513050141,41.75042564,112.52,112.4,4.446]
[1644513050340,0.03335567,112.49,112.4,4.446]
[1644513050541,4.446,112.48,112.4,4.446]
[1644513050741,4.47935567,112.5,112.4,4.446]
[1644513050943,4.446,112.5,112.4,4.446]
[1644513051140,38.14199826,112.49,112.4,4.446]
[1644513051540,4.446,112.48,112.4,4.446]
[1644513052442,46.25782038,112.47,112.4,4.446]
[1644513052842,46.25782038,112.47,112.4,20.47838918]
[1644513053043,46.25782038,112.47,112.41,12.87]
[1644513054747,46.25782038,112.47,112.39,12.87]
[1644513054943,4.71,112.6,112.41,131.0]
[1644513055145,2.50661431,112.59,112.49,1.63700023]
[1644513055445,13.3203,112.75,112.61,18.58570465]
[1644513055644,57.6822,112.78,112.62,12.87]
[1644513055645,0.03335262,112.71,112.62,12.87]
[1644513055845,3.533,112.7,112.62,12.87]
[1644513056045,42.91928973,112.69,112.61,18.58570465]
[1644513056246,42.91928973,112.69,112.61,179.42570465]
[1644513056445,3.448,112.68,112.61,179.42570465]
[1644513056645,48.45684647,112.67,112.61,18.58570465]
[1644513057045,3.45,112.66,112.61,18.58570465]
[1644513057248,48.45684647,112.67,112.61,18.58570465]
[1644513058646,122.0,112.65,112.54,4.63563404]
[1644513058846,0.81509227,112.61,112.48,4.438]